bitfinex-derivatives/quotes_ETHF0:USTF0_20250626
["timestamp","ask_amount","ask_price","bid_price","bid_amount"]
[1750896689470,0.57724,2424.0,2423.9,0.6902]
[1750896689867,1.3596,2424.1,2423.8,3.2078]
[1750896689868,0.57726,2423.9,2423.8,3.2078]
[1750896690176,0.57735,2423.6,2423.5,3.2078]
[1750896690765,1.3596,2423.8,2423.2,3.2078]
[1750896690766,4.65108,2423.7,2423.2,3.2078]
[1750896690966,0.57741,2423.3,2423.2,3.2078]
[1750896692169,1.3596,2423.4,2422.8,3.9422]
[1750896692170,0.57749,2423.0,2422.8,3.9422]
[1750896692370,0.57746,2423.1,2422.8,4.51971]
[1750896692668,0.57748,2423.0,2422.8,3.9422]
[1750896692972,0.57748,2423.0,2422.8,4.51972]
[1750896693574,0.57748,2423.0,2422.8,3.9422]
[1750896694074,0.5775,2422.9,2422.8,3.2078]
[1750896694267,0.57757,2422.7,2422.5,3.9039]
[1750896694661,0.57757,2422.6,2422.5,3.9039]
[1750896694867,0.57756,2422.7,2422.5,3.9039]
[1750896695373,2.72383,2422.8,2422.5,4.48149]
[1750896695872,2.72383,2422.8,2422.5,3.78539]
[1750896696071,2.1463,2422.8,2422.6,0.57757]
[1750896696271,2.1463,2422.8,2422.7,0.57755]
[1750896696686,2.1463,2422.8,2422.6,0.57756]
[1750896697388,2.1463,2422.8,2422.7,0.57755]
[1750896698784,2.1463,2422.8,2422.6,0.57756]
[1750896698985,2.72384,2422.8,2422.5,3.2078]
[1750896699292,2.1463,2422.8,2422.5,3.78539]
[1750896699482,2.1463,2422.8,2422.6,0.57757]
[1750896699483,2.72384,2422.8,2422.6,0.57757]
[1750896700080,2.1463,2422.8,2422.6,0.57757]
[1750896700286,2.72383,2422.8,2422.6,0.57757]
[1750896700489,2.1463,2422.8,2422.5,3.2078]
[1750896700688,2.72384,2422.8,2422.5,3.2078]
[1750896700887,0.57757,2422.7,2422.5,3.78539]
[1750896701082,1.99607,2422.7,2422.5,3.78539]
[1750896701284,1.4185,2422.7,2422.6,0.57757]
[1750896701786,1.4185,2422.7,2422.5,3.78538]
[1750896701986,1.4185,2422.7,2422.6,0.57757]
[1750896702687,1.99606,2422.7,2422.5,3.78538]
[1750896702888,1.4185,2422.7,2422.2,3.2078]
[1750896703190,0.5776,2422.5,2422.3,0.57764]
[1750896703389,2.0356,2422.4,2422.3,0.57764]
[1750896703687,2.7283,2422.4,2422.3,0.57764]
[1750896704294,1.3623,2422.4,2422.3,0.57764]
[1750896705095,1.3791,2422.7,2422.6,0.57757]
[1750896705384,2.0571,2423.1,2422.9,0.57749]
[1750896705593,2.63457,2423.1,2422.8,0.5775]
[1750896705983,0.57748,2423.0,2422.8,0.5775]
[1750896706178,1.3791,2422.9,2422.8,0.5775]
[1750896706381,2.053,2422.9,2422.7,0.57753]
[1750896706590,2.63051,2422.9,2422.7,0.57753]
[1750896706779,2.053,2422.9,2422.7,0.57753]
[1750896707177,2.63052,2422.9,2422.7,0.57753]
[1750896709395,2.053,2422.9,2422.8,0.57752]
[1750896709580,2.6305,2422.9,2422.7,0.57753]
[1750896709786,2.053,2422.9,2422.5,0.7328]
[1750896709988,2.02515,2422.8,2422.5,0.57759]
[1750896710188,1.4476,2422.7,2422.6,0.57757]
[1750896710390,1.4476,2422.7,2422.6,3.78537]
[1750896711189,0.6739,2422.9,2422.7,0.57753]
[1750896711390,2.1166,2422.9,2422.7,0.57753]
[1750896711592,2.6941,2422.9,2422.7,0.57753]
[1750896711790,8.5606,2422.9,2422.8,0.57752]
[1750896711989,2.1166,2422.9,2422.8,0.57752]
[1750896712194,0.6739,2422.9,2422.8,0.57752]
[1750896713590,1.25547,2423.1,2422.9,0.57748]
[1750896713789,6.525,2423.0,2422.9,0.57748]
[1750896714687,6.525,2423.0,2422.9,3.78528]
[1750896715395,1.25546,2423.1,2422.9,3.2078]
[1750896715396,0.678,2423.1,2422.9,3.2078]
[1750896715597,7.78047,2423.1,2422.9,3.78529]
[1750896716498,0.6943,2423.2,2422.9,3.2078]
[1750896716696,10.31019,2423.4,2423.2,0.57742]
[1750896717000,1.01168305,2423.3,2423.2,0.57743]
[1750896717994,6.525,2423.8,2423.5,0.57735]
[1750896718193,1.01214174,2423.7,2423.2,3.2078]
[1750896718499,1.01214174,2423.6,2423.5,0.57734]
[1750896719097,1.01214174,2423.6,2423.4,0.57737]
[1750896719293,1.01214174,2423.5,2423.4,0.57737]
[1750896719695,1.58949174,2423.6,2423.4,0.57737]
[1750896719897,0.5774,2423.4,2423.2,3.2078]
[1750896720094,2.29685174,2423.3,2423.2,3.2078]
[1750896720300,4.43565174,2423.3,2423.2,3.2078]
[1750896721501,2.43234174,2423.3,2423.2,3.78523]
[1750896721690,1.01214174,2423.3,2423.2,3.78523]
[1750896722399,7.2058,2423.5,2423.3,0.57741]
[1750896722604,1.01359071,2423.4,2423.3,0.57741]
[1750896723104,1.01359071,2423.4,2423.2,3.78521]
[1750896723298,7.78316,2423.5,2423.2,3.78521]
[1750896723497,1.0133623,2423.4,2423.2,3.78521]
[1750896723804,0.6818,2423.5,2423.3,0.57741]
[1750896724002,1.01340267,2423.4,2423.3,0.57739]
[1750896724403,0.6818,2423.5,2423.3,0.57739]
[1750896724605,0.57734,2423.6,2423.3,0.57739]
[1750896724805,1.0131364,2423.5,2423.4,0.57738]
[1750896725506,1.3666,2423.7,2423.5,0.57734]
[1750896725696,1.01282119,2423.6,2423.5,0.57736]
[1750896726811,1.01282119,2423.6,2423.4,0.57737]
[1750896726999,3.9015,2423.9,2423.3,1.4544]
[1750896727000,0.57737,2423.5,2423.3,1.4544]
[1750896727200,0.57735,2423.6,2423.3,1.4544]
[1750896727400,0.57732,2423.7,2423.4,0.57737]
[1750896727697,1.01075592,2423.6,2423.5,0.57736]
[1750896728508,1.01075592,2423.6,2423.5,3.2078]
[1750896728711,1.01075592,2423.6,2423.5,3.78516]
[1750896728909,1.58787032,2423.6,2423.5,3.2078]
[1750896729110,1.58787229,2423.6,2423.5,3.2078]
[1750896729409,0.57733,2423.7,2423.5,3.78516]
[1750896729908,0.57733,2423.6,2423.5,3.2078]
[1750896730611,0.57742,2423.3,2423.1,7.10145]
[1750896730809,0.57744,2423.2,2423.0,3.2078]
[1750896731002,0.57744,2423.2,2423.0,3.78527]
[1750896731304,0.57744,2423.2,2423.1,0.7047]
[1750896732611,0.57741,2423.3,2423.1,1.28215]
[1750896733006,0.57741,2423.3,2423.1,0.7047]
[1750896733206,0.57741,2423.3,2423.1,1.28215]
[1750896733802,0.57741,2423.3,2423.1,0.7047]
[1750896734009,0.57739,2423.4,2423.1,0.7047]
[1750896734210,1.4428,2423.5,2423.4,0.57738]
[1750896734509,1.4428,2423.5,2423.3,3.7852]
[1750896734708,1.4428,2423.5,2423.4,0.6816]
[1750896735016,1.4428,2423.5,2423.4,1.25898]
[1750896735220,0.57732,2423.7,2423.5,0.57734]
[1750896735513,3.2078,2423.9,2423.7,0.57731]
[1750896735514,0.57727,2423.9,2423.7,0.57731]
[1750896735719,1.01039235,2423.8,2423.7,0.57731]
[1750896735914,0.7041,2424.0,2423.8,0.57728]
[1750896736114,0.7041,2424.0,2423.9,3.78506]
[1750896736509,1.01027979,2424.0,2423.9,3.78506]
[1750896736910,1.01027979,2424.0,2423.9,3.2078]
[1750896737213,1.58751979,2424.0,2423.9,3.2078]
[1750896737814,1.01027979,2424.0,2423.9,3.2078]
[1750896738412,1.01027979,2424.0,2423.9,3.78506]
[1750896738608,1.01027979,2424.0,2423.9,3.2078]
[1750896738804,1.58751979,2424.0,2423.9,3.2078]
[1750896740714,1.01027979,2424.0,2423.6,3.2078]
[1750896740921,0.5773,2423.8,2423.6,3.78513]
[1750896741721,0.6774,2424.2,2423.6,3.2078]
[1750896742027,1.00943926,2424.1,2423.9,3.78505]
[1750896742210,2.6023,2424.2,2423.9,3.78505]
[1750896742418,1.00941175,2424.1,2423.9,3.78505]
[1750896742617,2.6023,2424.2,2423.9,3.78505]
[1750896742817,1.00940734,2424.1,2424.0,0.57724]
[1750896743028,2.60229,2424.2,2424.0,0.57724]
[1750896743229,1.00937272,2424.1,2424.0,0.57724]
[1750896743718,2.0251,2424.2,2423.9,3.2078]
[1750896743719,2.0251,2424.2,2424.1,0.57721]
[1750896743921,0.7044,2424.3,2424.2,0.57719]
[1750896744122,9.24051,2424.6,2424.3,0.57716]
[1750896744310,1.58638436,2424.5,2424.3,0.57716]
[1750896744626,1.00926436,2424.4,2424.2,3.78498]
[1750896744818,2.01422,2424.5,2424.2,3.78498]
[1750896745021,1.00916978,2424.4,2424.2,3.78498]
[1750896745317,1.4371,2424.5,2424.3,0.57717]
[1750896745521,1.00907606,2424.4,2424.2,3.78498]
[1750896745825,2.01422,2424.5,2424.2,3.2078]
[1750896745826,0.57717,2424.3,2424.2,3.2078]
[1750896746029,1.4371,2424.4,2424.2,3.78499]
[1750896746218,1.4371,2424.4,2424.3,0.57717]
[1750896746413,2.44623759,2424.4,2424.3,0.57717]
[1750896747118,8.53161,2424.6,2424.3,0.57717]
[1750896747320,1.4275,2424.6,2424.5,0.57712]
[1750896747523,2.43631929,2424.6,2424.5,0.57712]
[1750896747720,2.43631929,2424.6,2424.2,3.2078]
[1750896747921,0.57716,2424.4,2424.2,3.2078]
[1750896748527,0.57714,2424.5,2424.2,3.78498]
[1750896748721,1.98384,2424.5,2424.2,3.78498]
[1750896748922,1.4067,2424.5,2424.2,3.2078]
[1750896749323,1.98383,2424.5,2424.2,3.78499]
[1750896750230,1.98383,2424.5,2424.4,3.2078]
[1750896750420,2.99214726,2424.5,2424.4,3.2078]
[1750896750930,7.99214726,2424.5,2424.4,3.2078]
[1750896751524,9.51814726,2424.5,2424.4,3.2078]
[1750896751720,8.94101726,2424.5,2424.1,3.2078]
[1750896751921,0.57718,2424.3,2424.1,3.2078]
[1750896752320,2.66089,2424.2,2424.1,3.2078]
[1750896753128,2.0837,2424.2,2424.0,0.57723]
[1750896753425,2.0837,2424.2,2424.1,3.2078]
[1750896753622,2.66089,2424.2,2424.1,3.2078]
[1750896754725,2.66089,2424.2,2423.9,0.57726]
[1750896754726,2.0837,2424.2,2423.8,3.2078]
[1750896754923,0.57726,2424.0,2423.8,3.2078]
[1750896755121,2.1859,2424.1,2423.8,3.2078]
[1750896755321,2.04356,2424.0,2423.8,3.78508]
[1750896755522,2.04356,2424.0,2423.8,3.2078]
[1750896755715,2.04356,2424.0,2423.8,3.78508]
[1750896755921,0.57726,2423.9,2423.8,3.2078]
[1750896756118,2.00356,2423.9,2423.8,3.2078]
[1750896759030,0.57733,2423.6,2423.5,6.526]
[1750896759326,2.7828,2423.8,2423.5,10.31114]
[1750896759533,2.2055,2423.8,2423.5,9.7338]
[1750896759729,2.78279,2423.8,2423.5,10.31115]
[1750896760225,0.7324,2423.8,2423.6,0.57733]
[1750896760428,0.7324,2423.8,2423.5,9.7338]
[1750896760621,0.7324,2423.8,2423.6,0.57732]
[1750896761133,1.30969,2423.8,2423.6,0.57732]
[1750896761330,0.7324,2423.8,2423.6,0.57732]
[1750896761525,0.7324,2423.8,2423.7,0.57731]
[1750896761720,35.6594,2424.1,2423.7,0.57731]
[1750896761927,2.27639282,2424.0,2423.7,0.57731]
[1750896762233,1.26485,2424.0,2423.8,3.78508]
[1750896762533,1.26485,2424.0,2423.8,3.2078]
[1750896762946,0.57726,2423.9,2423.8,3.2078]
[1750896763328,1.58979783,2423.9,2423.8,3.2078]
[1750896764935,1.01253783,2423.9,2423.8,3.2078]
[1750896765136,3.05589783,2423.9,2423.8,3.2078]
[1750896769239,0.57733,2423.6,2423.5,9.7338]
[1750896770437,1.59041865,2423.6,2423.5,3.2078]
[1750896772738,0.57732,2423.7,2423.5,3.2078]
[1750896773828,0.57732,2423.7,2423.5,3.78515]
[1750896774440,2.0478,2423.8,2423.5,3.78515]
[1750896774737,1.59031012,2423.7,2423.5,3.78515]
[1750896774938,0.57731,2423.7,2423.5,3.78515]
[1750896775340,0.57731,2423.7,2423.5,3.2078]
[1750896776044,0.57733,2423.6,2423.5,3.2078]
[1750896776632,0.57733,2423.7,2423.5,3.2078]
[1750896776933,0.7166,2423.6,2423.5,3.2078]
[1750896777448,0.57733,2423.6,2423.5,3.2078]
[1750896779536,0.57732,2423.7,2423.5,3.78515]
[1750896779741,0.57733,2423.6,2423.5,3.2078]
[1750896780537,1.01386229,2423.6,2423.5,3.78516]
[1750896780842,0.5773,2423.8,2423.6,0.57733]
[1750896781240,0.5773,2423.8,2423.6,1.91423]
[1750896782443,0.5773,2423.8,2423.7,0.57731]
[1750896782745,1.01414341,2423.8,2423.7,0.57731]
[1750896783046,0.57724,2424.0,2423.8,0.57728]
[1750896783342,1.01409942,2423.9,2423.8,3.78508]
[1750896783940,1.01409942,2423.9,2423.8,3.2078]
[1750896783941,1.59135942,2423.9,2423.8,3.2078]
[1750896787346,1.01409942,2423.9,2423.8,3.2078]
[1750896787637,1.01409942,2423.9,2423.8,3.78509]
[1750896787843,1.59135942,2423.9,2423.8,3.2078]
[1750896788038,1.01409942,2423.9,2423.8,3.2078]
[1750896788245,1.59135942,2423.9,2423.8,3.2078]
[1750896789747,1.01409942,2423.9,2423.8,3.78509]
[1750896791840,0.6953,2424.4,2423.8,15.31009]
[1750896792146,0.57721,2424.2,2424.0,3.78504]
[1750896792852,0.7095,2424.3,2424.0,3.2078]
[1750896793036,0.57721,2424.1,2424.0,3.2078]
[1750896794749,1.9132,2424.2,2424.0,3.78504]
[1750896795243,0.57721,2424.1,2424.0,3.2078]
[1750896795548,1.91321,2424.2,2424.0,3.2078]
[1750896796450,1.91321,2424.2,2424.0,3.78503]
[1750896796642,1.91321,2424.2,2424.0,3.2078]
[1750896797550,0.57721,2424.1,2424.0,3.2078]
[1750896799440,0.57721,2424.1,2423.1,1.44364]
[1750896799441,9.65089,2424.1,2423.4,9.7318]
[1750896799643,0.57732,2423.7,2423.4,10.30917]
[1750896799839,0.57736,2423.5,2423.4,9.7318]
[1750896800341,0.57736,2423.5,2423.4,6.524]
[1750896800538,1.29696,2423.5,2423.4,6.524]
[1750896801945,0.7196,2423.5,2423.4,6.524]
[1750896803752,1.29696,2423.5,2423.4,6.524]
[1750896805251,0.7196,2423.5,2423.4,6.524]
[1750896806052,1.29696,2423.5,2423.4,6.524]
[1750896806250,0.57739,2423.4,2423.1,10.3966]
[1750896806452,0.57739,2423.4,2423.1,10.97403]
[1750896806653,1.29697,2423.5,2423.2,0.57741]
[1750896807250,1.29697,2423.5,2423.3,0.5774]
[1750896807449,0.7196,2423.5,2423.3,0.5774]
[1750896807752,1.29696,2423.5,2423.3,0.5774]
[1750896807953,1.29696,2423.5,2423.2,0.57741]
[1750896808252,0.7196,2423.5,2423.2,0.57741]
[1750896808453,0.7196,2423.5,2423.3,0.5774]
[1750896808648,1.29697,2423.5,2423.3,0.5774]
[1750896809751,0.5774,2423.4,2423.1,10.97403]
[1750896809954,0.5774,2423.4,2423.2,0.57742]
[1750896810453,0.7196,2423.5,2423.1,10.3966]
[1750896810648,1.29697,2423.5,2423.3,0.5774]
[1750896811247,1.29697,2423.5,2423.4,0.57738]
[1750896811448,0.7196,2423.5,2423.4,0.57738]
[1750896812253,1.29696,2423.5,2423.4,0.57738]
[1750896812853,1.29696,2423.5,2423.3,0.57739]
[1750896813056,0.57738,2423.4,2423.3,0.57739]
[1750896813248,0.57741,2423.3,2423.1,10.97404]
[1750896813450,0.57741,2423.3,2423.2,0.57743]
[1750896813648,0.57739,2423.4,2423.2,0.57743]
[1750896814149,0.57741,2423.3,2423.2,0.57743]
[1750896814656,0.57741,2423.3,2423.1,10.97404]
[1750896814853,0.7196,2423.5,2423.1,3.8886]
[1750896815060,0.57749,2423.0,2422.8,10.29331]
[1750896815259,0.57749,2423.0,2422.8,10.96511]
[1750896815452,0.57749,2423.0,2422.8,10.3876]
[1750896816259,3.9217,2423.2,2422.8,7.1798]
[1750896816460,0.5775,2423.0,2422.8,7.1798]
[1750896816659,0.5775,2422.9,2422.8,7.1798]
[1750896817456,1.4419,2423.1,2422.6,0.57757]
[1750896817652,0.57754,2422.8,2422.6,1.24937]
[1750896818049,0.57754,2422.8,2422.6,0.6718]
[1750896818245,0.57754,2422.8,2422.6,1.24937]
[1750896818459,0.57752,2422.9,2422.6,1.24937]
[1750896818962,0.57753,2422.8,2422.6,0.6718]
[1750896819154,0.57753,2422.8,2422.6,1.24937]
[1750896819458,0.57755,2422.7,2422.6,0.6718]
[1750896820059,0.57754,2422.8,2422.6,0.6718]
[1750896820257,0.57752,2422.9,2422.6,1.24937]
[1750896821956,0.57754,2422.8,2422.6,1.24936]
[1750896822157,0.57754,2422.8,2422.6,0.6718]
[1750896822358,0.57756,2422.7,2422.5,3.2078]
[1750896822871,0.57757,2422.6,2422.5,3.2078]
[1750896823167,0.57756,2422.7,2422.5,3.2078]
[1750896824363,0.57756,2422.7,2422.5,3.78539]
[1750896824760,1.4419,2423.1,2422.5,3.2078]
[1750896824957,0.57753,2422.8,2422.6,0.57756]
[1750896825156,0.57752,2422.9,2422.6,0.57756]
[1750896825357,1.4419,2423.1,2422.7,0.7298]
[1750896825658,0.57752,2422.8,2422.7,0.7298]
[1750896830969,0.57755,2422.7,2422.6,3.2078]
[1750896831569,1.4437,2423.0,2422.4,6.51]
[1750896831570,6.8203,2422.9,2422.4,6.51]
[1750896831769,0.5776,2422.5,2422.4,6.51]
[1750896832170,0.7025,2422.6,2422.4,6.51]
[1750896832361,0.7025,2422.6,2422.5,3.7854]
[1750896832566,0.57754,2422.8,2422.5,3.7854]
[1750896832767,0.57754,2422.8,2422.6,0.7258]
[1750896833168,0.57754,2422.8,2422.6,1.30336]
[1750896834376,5.9856,2422.9,2422.6,1.30336]
[1750896834574,5.9856,2422.9,2422.6,0.7258]
[1750896834773,0.57755,2422.7,2422.6,0.7258]
[1750896834975,0.57755,2422.8,2422.6,1.30337]
[1750896835979,0.57755,2422.7,2422.6,0.7258]
[1750896836877,0.57754,2422.8,2422.6,1.30337]
[1750896837471,0.57754,2422.8,2422.7,0.57755]
[1750896837780,0.57754,2422.8,2422.6,1.30336]
[1750896838972,0.57754,2422.8,2422.7,0.57755]
[1750896840077,1.99751,2422.9,2422.8,0.57752]
[1750896840281,3.2078,2423.2,2422.6,0.7258]
[1750896840475,1.00635248,2423.1,2423.0,0.57746]
[1750896841577,4.46067,2423.5,2423.3,0.57739]
[1750896841778,1.00653386,2423.4,2423.3,0.57739]
[1750896842779,1.00653386,2423.4,2423.3,0.57741]
[1750896844183,0.57741,2423.3,2423.2,3.2078]
[1750896844484,1.58394386,2423.3,2423.2,3.2078]
[1750896846078,0.57745,2423.2,2423.0,7.1875]
[1750896846384,0.57745,2423.1,2423.0,0.7155]
[1750896846590,0.57748,2423.0,2422.9,3.2078]
[1750896846886,0.57748,2423.0,2422.9,9.6788]
[1750896847884,1.29437,2423.1,2422.9,9.6788]
[1750896848185,1.29437,2423.1,2422.9,10.2563]
[1750896848581,0.57748,2423.0,2422.9,9.6788]
[1750896849479,1.29437,2423.1,2422.9,10.2563]
[1750896850584,3.2078,2423.5,2423.1,0.57745]
[1750896850780,0.57741,2423.3,2423.2,3.2078]
[1750896850976,0.57741,2423.3,2423.2,3.9131]
[1750896851382,0.7348,2423.4,2423.2,3.9131]
[1750896851581,1.24698,2423.5,2423.3,0.57741]
[1750896851884,1.24697,2423.5,2423.3,0.57741]
[1750896852279,1.24697,2423.5,2423.2,3.9131]
[1750896852584,0.57738,2423.4,2423.3,0.57739]
[1750896852777,1.24697,2423.5,2423.3,0.57739]
[1750896853085,1.24697,2423.5,2423.4,0.57738]
[1750896853286,2.25209893,2423.5,2423.3,0.57739]
[1750896853475,1.24697,2423.5,2423.3,0.57739]
[1750896853984,0.6696,2423.5,2423.4,0.57738]
[1750896854185,1.67460187,2423.5,2423.4,0.57738]
[1750896854586,2.25196187,2423.5,2423.2,10.3841]
[1750896854784,1.24696,2423.5,2423.3,0.57741]
[1750896855389,0.6696,2423.5,2423.4,0.57738]
[1750896855591,1.67441551,2423.5,2423.4,0.57738]
[1750896855889,2.25177551,2423.5,2423.3,0.57739]
[1750896856080,0.57738,2423.4,2423.2,10.96152]
[1750896856885,0.57738,2423.4,2423.2,10.3841]
[1750896857096,1.24697,2423.5,2423.3,0.57741]
[1750896857882,0.6696,2423.5,2423.4,0.57738]
[1750896858082,1.24696,2423.5,2423.3,0.57739]
[1750896860388,2.1669,2423.7,2423.2,10.3841]
[1750896860593,1.31211,2423.7,2423.5,0.57734]
[1750896860887,1.31211,2423.7,2423.6,0.7201]
[1750896861088,1.73882852,2423.7,2423.2,10.25621]
[1750896861383,0.57739,2423.4,2423.3,7.1738]
[1750896861589,0.57737,2423.5,2423.3,7.75121]
[1750896861786,1.4597,2423.6,2423.3,7.75121]
[1750896861988,2.03705,2423.6,2423.4,0.57738]
[1750896863390,0.57736,2423.5,2423.3,7.75119]
[1750896863989,0.7001,2423.4,2423.3,7.75119]
[1750896865390,1.27748,2423.4,2423.3,7.1738]
[1750896865896,1.27748,2423.4,2423.3,7.75121]
[1750896865897,0.7001,2423.4,2423.3,7.75121]
[1750896866583,0.7001,2423.4,2423.3,0.57741]
[1750896866790,0.7001,2423.4,2423.3,7.04741]
[1750896867996,0.7001,2423.4,2423.3,7.73781]
[1750896869088,1.4597,2423.6,2423.4,0.57736]
[1750896869285,2.03705,2423.6,2423.4,0.57736]
[1750896869795,0.57736,2423.5,2423.3,7.73779]
[1750896872190,2.03705,2423.6,2423.3,7.1604]
[1750896872393,1.4597,2423.6,2423.5,0.57736]
[1750896872694,2.46490805,2423.6,2423.5,0.57736]
[1750896872992,3.04223805,2423.6,2423.4,0.57736]
[1750896873193,2.03703,2423.6,2423.4,0.57736]
[1750896874396,1.4597,2423.6,2423.5,0.57736]
[1750896874694,2.46491352,2423.6,2423.5,0.57736]
[1750896874888,2.46491352,2423.6,2423.4,0.57736]
[1750896875088,0.57737,2423.5,2423.3,7.73779]
[1750896875288,1.94737,2423.5,2423.3,7.73779]
[1750896875494,1.94737,2423.5,2423.4,0.57738]
[1750896876296,1.94737,2423.5,2423.3,7.73779]
[1750896876489,0.6864,2423.4,2423.3,7.73779]
[1750896883599,0.6864,2423.4,2423.3,7.73781]
[1750896885002,0.6864,2423.4,2423.3,10.94561]
[1750896887397,1.37,2423.5,2423.4,0.57738]
[1750896887597,2.37738991,2423.5,2423.4,0.57738]
[1750896887898,1.00738991,2423.5,2423.4,0.57738]
[1750896890295,0.7145,2423.8,2423.7,0.57731]
[1750896890503,0.6674,2424.0,2423.9,0.57726]
[1750896892107,0.6674,2424.0,2423.7,0.7157]
[1750896892295,1.4176,2423.9,2423.6,3.2078]
[1750896892494,1.4176,2423.9,2423.7,0.57731]
[1750896892700,1.99488,2423.9,2423.7,0.57731]
[1750896893004,1.4176,2423.9,2423.6,3.2078]
[1750896893195,0.57731,2423.7,2423.6,3.2078]
[1750896893596,1.99371,2423.7,2423.6,3.78513]
[1750896893803,1.4164,2423.7,2423.6,3.78513]
[1750896894305,2.8857,2423.7,2423.6,3.78513]
[1750896895603,2.8857,2423.7,2423.6,3.2078]
[1750896895604,3.46301,2423.7,2423.6,3.2078]
[1750896896002,2.8857,2423.7,2423.6,3.78513]
[1750896897507,3.46301,2423.7,2423.6,3.2078]
[1750896898009,2.8857,2423.7,2423.6,3.78513]
[1750896900307,0.7104,2423.7,2423.6,3.78513]
[1750896901509,1.4507,2424.0,2423.8,0.57727]
[1750896901706,1.4507,2424.0,2423.7,0.6702]
[1750896902009,1.4507,2424.0,2423.9,0.57726]
[1750896902504,2.45193472,2424.0,2423.9,0.57726]
[1750896902810,1.00123472,2424.0,2423.9,0.57726]
[1750896903008,1.00123472,2424.0,2423.9,3.78506]
[1750896903208,0.6772,2424.1,2424.0,0.57724]
[1750896903511,2.0788,2424.3,2424.2,0.57719]
[1750896903709,3.0794684,2424.3,2424.2,0.57719]
[1750896904505,0.577,2425.0,2424.2,8.2078]
[1750896904710,1.00004156,2424.9,2424.8,0.57705]
[1750896905705,1.4157,2425.0,2424.9,0.57702]
[1750896907010,1.99272,2425.0,2424.7,0.57706]
[1750896907202,2.8577,2425.0,2424.6,8.6341]
[1750896907505,2.8577,2425.0,2424.8,0.57704]
[1750896907712,3.43471,2425.0,2424.7,0.57706]
[1750896907913,0.57703,2424.9,2424.6,9.21118]
[1750896908212,0.57703,2424.9,2424.6,7.75318]
[1750896908414,0.57703,2424.9,2424.7,0.57707]
[1750896908714,3.43471,2425.0,2424.7,0.57707]
[1750896909008,0.57703,2424.9,2424.7,0.57707]
[1750896909515,0.57703,2424.9,2424.6,7.75319]
[1750896910009,0.57703,2424.9,2424.6,7.75318]
[1750896910210,1.26923,2424.9,2424.6,7.75318]
[1750896910410,1.26923,2424.9,2424.7,0.57707]
[1750896910610,0.6922,2424.9,2424.7,0.57707]
[1750896910919,1.26923,2424.9,2424.7,6.463]
[1750896911213,1.26923,2424.9,2424.7,7.04007]
[1750896911413,0.6922,2424.9,2424.7,7.04006]
[1750896911616,1.26922,2424.9,2424.7,7.04006]
[1750896912116,0.6922,2424.9,2424.7,7.04006]
[1750896912616,1.26923,2424.9,2424.7,6.463]
[1750896912917,0.6922,2424.9,2424.7,6.463]
[1750896913210,0.6922,2424.9,2424.7,7.04006]
[1750896913418,1.26923,2424.9,2424.7,7.04006]
[1750896913614,0.6922,2424.9,2424.7,7.04006]
[1750896913814,1.26923,2424.9,2424.7,7.04006]
[1750896914715,0.57705,2424.8,2424.7,6.463]
[1750896914917,1.26924,2424.9,2424.7,6.463]
[1750896915614,0.57707,2424.7,2424.6,0.7111]
[1750896915817,0.57706,2424.8,2424.6,7.1741]
[1750896916115,0.57707,2424.7,2424.6,7.1741]
[1750896916813,2.05436,2424.8,2424.6,7.75119]
[1750896917013,0.57707,2424.7,2424.6,7.1741]
[1750896917816,2.05436,2424.8,2424.6,7.75119]
[1750896918914,3.2078,2425.4,2424.6,12.1741]
[1750896919115,4.6475,2425.4,2425.1,0.57696]
[1750896919305,5.22443,2425.4,2425.1,0.57696]
[1750896919511,5.22443,2425.4,2425.2,0.57695]
[1750896919812,0.57693,2425.3,2425.1,1.25506]
[1750896920012,5.22442,2425.4,2425.1,0.6781]
[1750896920209,4.6475,2425.4,2425.1,0.6781]
[1750896920416,0.57695,2425.2,2425.1,0.6781]
[1750896921119,1.97744,2425.3,2425.1,1.25508]
[1750896921322,1.4005,2425.3,2425.2,0.57695]
[1750896921522,1.4005,2425.3,2425.1,1.25506]
[1750896921730,1.4005,2425.3,2425.1,0.6781]
[1750896921925,0.57695,2425.2,2425.1,0.6781]
[1750896922524,1.97744,2425.3,2425.1,0.6781]
[1750896922818,0.57695,2425.2,2425.1,0.6781]
[1750896923324,3.2078,2425.7,2425.3,0.57692]
[1750896923622,2.71157,2425.6,2425.3,0.57692]
[1750896923815,0.57688,2425.5,2425.3,0.57692]
[1750896924015,3.43977,2425.6,2425.4,0.5769]
[1750896924317,1.4457,2425.6,2425.4,3.2078]
[1750896924522,2.02257,2425.6,2425.4,3.78469]
[1750896924716,1.4457,2425.6,2425.4,3.78469]
[1750896925023,1.4457,2425.6,2425.5,0.57688]
[1750896925421,1.4457,2425.6,2425.4,3.78469]
[1750896926025,2.02256,2425.6,2425.4,3.78469]
[1750896926420,0.57688,2425.5,2425.4,3.2078]
[1750896927024,1.91558,2425.5,2425.4,3.2078]
[1750896927223,1.3387,2425.5,2425.4,3.78471]
[1750896927630,0.57688,2425.5,2425.4,3.2078]
[1750896928730,1.4457,2425.6,2425.4,3.2078]
[1750896929330,0.57688,2425.5,2425.4,3.2078]
[1750896929627,1.91558,2425.5,2425.4,3.2078]
[1750896930228,1.4457,2425.6,2425.4,3.78471]
[1750896930828,0.57686,2425.6,2425.4,3.78471]
[1750896931028,0.57685,2425.7,2425.5,0.6733]
[1750896931427,0.57685,2425.7,2425.5,1.25018]
[1750896931627,1.4002,2425.8,2425.5,1.25018]